bitfinex-derivatives/quotes_SOLF0:USTF0_20250124
["timestamp","ask_amount","ask_price","bid_price","bid_amount"]
[1737740255730,1.245,263.86,263.68,1.3009]
[1737740256237,14.35505523,263.95,263.71,14.35505523]
[1737740256429,14.35505523,263.95,263.69,1.2856]
[1737740256430,0.68040021,263.94,263.76,14.35505523]
[1737740256737,4.46820021,263.94,263.89,3.7884]
[1737740256939,3.7878,263.94,263.76,14.35505523]
[1737740257236,3.7878,263.94,263.84,0.0290057]
[1737740257438,0.02450006,263.88,263.84,0.0290057]
[1737740258138,0.02450006,263.88,263.87,3.7887]
[1737740260042,0.02450006,263.88,263.84,0.0290057]
[1737740260738,0.02450006,263.88,263.84,3.8181057]
[1737740261241,3.81320006,263.88,263.84,0.0290057]
[1737740262035,0.02450006,263.88,263.84,0.0290057]
[1737740263534,3.81310006,263.88,263.84,0.0290057]
[1737740265242,3.81310006,263.88,263.72,1.0408957]
[1737740265437,3.7886,263.88,263.82,3.7895]
[1737740266434,0.02456105,263.88,263.82,0.02597039]
[1737740267038,0.02456105,263.88,263.87,3.7887]
[1737740267341,6.105e-05,263.88,263.87,3.7887]
[1737740274551,6.105e-05,263.88,263.87,18.12185518]
[1737740275349,6.105e-05,263.88,263.87,3.7887]
[1737740277451,3.7863,264.04,264.0,3.7868]
[1737740278159,6.3728,264.07,263.87,14.33315518]
[1737740278354,6.3728,264.07,263.94,0.02899598]
[1737740278355,3.8728,264.07,263.94,0.02899598]
[1737740278853,0.02738571,264.03,264.02,3.7866]
[1737740279257,8.571e-05,264.03,264.02,3.7866]
[1737740298470,3.9092,264.21,264.0,8.97167908]
[1737740298670,3.9092,264.21,264.18,3.7842]
[1737740298870,3.9092,264.21,264.04,8.94718994]
[1737740299164,3.9092,264.21,264.2,3.784]
[1737740301172,3.9092,264.21,264.18,3.80856115]
[1737740301471,3.9092,264.21,264.18,0.02436115]
[1737740301666,3.9092,264.21,264.19,3.7841]
[1737740302574,1.2916,264.21,264.18,0.02436115]
[1737740302769,0.02689703,264.23,264.18,0.02436115]
[1737740303572,0.02689703,264.23,264.22,3.7837]
[1737740310072,0.02689703,264.23,264.18,0.02436115]
[1737740310678,0.02689703,264.23,264.21,3.7838]
[1737740312372,0.02689703,264.23,264.22,3.7837]
[1737740316190,0.02689703,264.23,264.18,0.02436115]
[1737740316390,0.02689703,264.23,264.22,3.7837]
[1737740316591,0.02689703,264.23,264.18,0.02436115]
[1737740316887,5.72129457,264.22,264.2,3.784]
[1737740317092,5.72129457,264.22,264.18,0.02436115]
[1737740317484,5.72129457,264.22,264.21,3.7839]
[1737740319191,5.72129457,264.22,264.18,0.02436115]
[1737740319392,5.72129457,264.22,264.19,3.784]
[1737740319892,5.72129457,264.22,264.2,3.784]
[1737740320094,5.72129457,264.22,264.11,0.25673]
[1737740320294,5.72129457,264.14,264.11,0.25673]
[1737740321594,0.02470192,264.15,264.14,3.7849]
[1737740325191,0.02470192,264.15,264.11,0.25673]
[1737740325700,0.02470192,264.15,264.14,3.7849]
[1737740328801,0.02470192,264.15,264.11,0.25673]
[1737740329399,0.02470192,264.15,264.1,0.02441833]
[1737740329897,0.02470192,264.15,264.12,3.7851]
[1737740330701,0.02470192,264.15,264.13,3.785]
[1737740332400,0.02470192,264.15,264.14,3.7849]
[1737740340412,0.02470192,264.15,264.1,0.02441833]
[1737740340804,3.7849,264.14,264.1,0.02441833]
[1737740341012,0.02470192,264.15,264.1,3.80981833]
[1737740341204,0.02470192,264.15,264.1,0.02441833]
[1737740341707,5.7502484,264.15,264.14,3.7849]
[1737740345418,0.02470192,264.15,264.14,3.7849]
[1737740346211,5.7502484,264.15,264.14,3.7849]
[1737740346818,5.7502484,264.15,264.1,0.02441833]
[1737740347018,5.72554648,264.11,264.1,0.02441833]
[1737740348420,0.02470192,264.15,264.1,0.02441833]
[1737740348624,1.92e-06,264.15,264.14,3.7849]
[1737740350323,1.92e-06,264.15,264.1,0.02441833]
[1737740350528,5.72554648,264.12,264.1,0.02441833]
[1737740350825,5.7255484,264.15,264.1,0.02441833]
[1737740351026,1.92e-06,264.15,264.14,3.7849]
[1737740353330,1.92e-06,264.15,264.1,0.02441833]
[1737740353934,1.92e-06,264.15,264.11,3.7853]
[1737740354836,8.94451648,264.14,264.1,0.02441833]
[1737740357636,8.94451648,264.14,264.1,3.80971833]
[1737740358029,8.94451648,264.14,264.1,0.02441833]
[1737740358233,10.24791648,264.14,264.1,0.02441833]
[1737740358430,0.68004271,264.13,263.98,1.2588]
[1737740358631,8.94451648,264.1,263.98,1.2588]
[1737740358939,3.7857,264.09,264.03,3.7864]
[1737740359334,8.94451648,264.1,264.03,3.7864]
[1737740359533,8.94451648,264.1,263.95,5.65664448]
[1737740359738,3.7857,264.08,264.04,0.02890266]
[1737740360341,8.94451648,264.06,264.04,0.02890266]
[1737740360934,8.94451648,264.06,263.9,8.94451648]
[1737740361136,8.94451648,264.06,263.91,1.2515]
[1737740361532,8.94451648,264.1,263.91,1.2515]
[1737740362041,0.02417996,264.03,264.01,3.7866]
[1737740362239,0.02417996,264.03,263.98,0.0285685]
[1737740362642,0.02417996,264.03,264.01,3.7867]
[1737740363143,0.02417996,264.03,264.0,3.7868]
[1737740363345,0.02417996,264.03,263.98,0.0285685]
[1737740365142,0.02417996,264.03,264.02,3.7866]
[1737740365540,7.996e-05,264.03,264.02,3.7866]
[1737740369244,7.996e-05,264.03,263.98,0.0285685]
[1737740371247,7.996e-05,264.03,264.02,3.7866]
[1737740371448,7.996e-05,264.03,263.98,0.0285685]
[1737740371751,5.73112261,264.02,263.98,3.8156685]
[1737740372252,5.73112261,264.02,263.98,0.0285685]
[1737740372458,5.73112261,264.02,263.99,3.787]
[1737740374252,5.73112261,264.02,263.98,0.0285685]
[1737740374454,7.996e-05,264.03,263.98,0.0285685]
[1737740374952,7.996e-05,264.03,264.02,3.7866]
[1737740382060,7.996e-05,264.03,264.01,3.7867]
[1737740382959,7.996e-05,264.03,263.98,0.0285685]
[1737740383160,7.996e-05,264.03,264.02,3.7866]
[1737740387464,7.996e-05,264.03,264.0,3.7867]
[1737740387660,5.73112261,264.01,264.0,3.7867]
[1737740389264,5.73120257,264.03,263.98,0.0285685]
[1737740389466,5.73120257,264.03,264.0,3.7868]
[1737740391066,5.73120257,264.03,263.98,0.0285685]
[1737740391258,5.73112261,263.99,263.98,0.0285685]
[1737740396165,5.73112261,263.99,263.73,5.73112261]
[1737740396166,8.25112261,263.99,263.73,5.73112261]
[1737740396366,5.73112261,263.78,263.72,157.6789155]
[1737740397070,5.73112261,263.78,263.74,3.7905]
[1737740397271,5.73112261,263.78,263.72,157.6789155]
[1737740397463,5.73112261,263.78,263.73,0.02529681]
[1737740397668,0.02559433,263.79,263.73,0.02529681]
[1737740398068,0.02559433,263.79,263.73,3.81599681]
[1737740399771,0.02559433,263.79,263.74,3.7906]
[1737740400466,0.02559433,263.79,263.73,0.02529681]
[1737740401070,2.52,263.86,263.73,0.02529681]
[1737740401574,2.52,263.86,263.84,3.7891]
[1737740401872,2.52,263.86,263.7,10.28931607]
[1737740402072,2.52,263.86,263.7,1.3172]
[1737740402273,0.02807578,263.81,263.75,0.02775786]
[1737740402469,9.00019185,263.81,263.75,0.02775786]
[1737740402867,8.97211607,263.77,263.75,0.02775786]
[1737740403075,8.97211607,263.77,263.63,1.2716]
[1737740403267,8.97211607,263.73,263.63,1.2716]
[1737740403471,8.97211607,263.73,263.67,3.7916]
[1737740403770,8.97211607,263.73,263.63,1.2716]
[1737740403974,8.97211607,263.73,263.68,3.7914]
[1737740404275,0.02768356,263.71,263.65,0.0282287]
[1737740404970,8.356e-05,263.71,263.69,3.7913]
[1737740410183,8.356e-05,263.71,263.7,3.7912]
[1737740413377,8.356e-05,263.71,263.68,3.7913]
[1737740413681,8.356e-05,263.71,263.65,0.0282287]
[1737740414178,8.356e-05,263.71,263.67,3.7916]
[1737740414385,8.356e-05,263.71,263.65,0.0282287]
[1737740414678,8.356e-05,263.71,263.68,3.7914]
[1737740414886,8.356e-05,263.71,263.65,0.0282287]
[1737740415382,8.356e-05,263.71,263.7,3.7912]
[1737740422388,10.24911607,263.88,263.67,8.97211607]
[1737740422588,10.24911607,263.88,263.86,3.7889]
[1737740423087,10.24911607,263.88,263.73,8.97211607]
[1737740423290,10.24911607,263.88,263.84,3.7891]
[1737740423782,10.24911607,263.88,263.83,0.02909414]
[1737740423988,8.97211607,263.84,263.67,7.5831]
[1737740424388,8.97211607,263.84,263.66,3.9245]
[1737740424887,12.76141607,263.84,263.77,3.7901]
[1737740425088,0.02835024,263.78,263.77,3.7901]
[1737740425889,5.024e-05,263.78,263.77,3.7901]
[1737740429393,5.024e-05,263.78,263.75,0.02813615]
[1737740429695,8.97211607,263.76,263.66,2.5964]
[1737740429892,8.97211607,263.76,263.69,3.7913]
[1737740430092,8.97211607,263.76,263.66,2.5964]
[1737740430493,8.97211607,263.76,263.72,3.7908]
[1737740430789,8.97211607,263.76,263.68,0.02740741]
[1737740430993,8.97211607,263.76,263.73,3.7907]
[1737740431594,8.97211607,263.76,263.68,0.02740741]
[1737740432392,8.97211607,263.76,263.72,3.7909]
[1737740433798,8.97211607,263.76,263.68,0.02740741]
[1737740434193,0.02569397,263.77,263.68,0.02740741]
[1737740434590,0.02569397,263.77,263.76,3.7903]
[1737740436295,0.02569397,263.77,263.74,0.02508562]
[1737740436498,8.97211607,263.76,263.6,10.30431607]
[1737740436903,8.97211607,263.76,263.6,1.3322]
[1737740437397,12.76241607,263.76,263.69,3.7912]
[1737740437701,2.52,263.85,263.6,1.3322]
[1737740437702,0.02831826,263.71,263.65,0.02849353]
[1737740437995,12.76201607,263.8,263.74,3.7906]
[1737740438201,8.97211607,263.8,263.74,3.7906]
[1737740438399,8.99827109,263.8,263.6,10.30431607]
[1737740438702,2.52,263.79,263.6,10.30431607]
[1737740438900,0.02649621,263.73,263.67,0.02451871]
[1737740439501,0.02649621,263.73,263.72,3.7909]
[1737740439702,0.02649621,263.73,263.67,0.02451871]
[1737740440002,8.97211607,263.71,263.67,0.02451871]
[1737740440201,3.7914,263.69,263.67,0.02451871]
[1737740440597,8.97211607,263.71,263.67,0.02451871]
[1737740441800,8.97211607,263.71,263.67,3.81611871]
[1737740444909,8.97211607,263.71,263.68,3.7915]
[1737740446813,8.97211607,263.71,263.67,0.02451871]
[1737740448111,8.97211607,263.71,263.67,3.81601871]
[1737740448913,8.97211607,263.71,263.67,0.02451871]
[1737740449303,3.7914,263.69,263.67,0.02451871]
[1737740449611,8.97211607,263.71,263.67,0.02451871]
[1737740450113,3.7914,263.69,263.67,0.02451871]
[1737740451310,3.7915,263.68,263.67,0.02451871]
[1737740453214,2.52,263.69,263.67,0.02451871]
[1737740455814,2.52,263.69,263.68,3.7915]
[1737740456508,0.02649621,263.73,263.67,0.02451871]
[1737740457110,0.02649621,263.73,263.72,3.7909]
[1737740458516,8.97211607,263.85,263.67,0.02451871]
[1737740458818,11.47211607,263.85,263.67,1.2781]
[1737740459213,11.47211607,263.85,263.8,3.7897]
[1737740459520,8.99673652,263.85,263.8,0.02419816]
[1737740460018,8.99673652,263.85,263.8,3.81389816]
[1737740460314,0.02462045,263.85,263.8,0.02419816]
[1737740460520,0.02462045,263.85,263.84,3.7892]
[1737740461310,0.02462045,263.85,263.8,0.02419816]
[1737740461509,0.02462045,263.85,263.82,3.7893]
[1737740462216,0.02462045,263.85,263.83,3.7893]
[1737740462715,8.97211607,263.94,263.8,0.02419816]
[1737740463012,8.97211607,263.94,263.8,2.5218]
[1737740463410,8.97211607,263.94,263.9,3.7882]
[1737740464210,8.97211607,263.94,263.92,3.788]
[1737740465118,8.97211607,263.94,263.9,3.7883]
[1737740466013,8.97211607,263.94,263.92,3.788]
[1737740466418,8.97211607,263.94,263.89,0.02622715]
[1737740466419,8.97211607,263.94,263.9,3.7882]
[1737740466623,8.97211607,263.94,263.89,0.02622715]
[1737740468121,8.97211607,263.94,263.91,3.7881]
[1737740469119,8.97211607,263.94,263.89,0.02622715]
[1737740469320,8.97211607,263.9,263.89,0.02622715]
[1737740469521,8.97211607,263.9,263.8,1.3073]
[1737740469719,8.97211607,263.86,263.68,2.5139]
[1737740469921,3.789,263.85,263.79,3.7898]
[1737740470217,8.97211607,263.86,263.79,3.7898]
[1737740470721,0.02620052,263.85,263.8,0.02761926]
[1737740471421,2.52620052,263.85,263.8,0.02761926]
[1737740472622,0.02620052,263.85,263.84,3.7892]
[1737740475324,8.97211607,263.94,263.8,0.02761926]
[1737740475520,8.97211607,263.94,263.76,8.97211607]
[1737740476121,8.97211607,263.9,263.73,7.5814]
[1737740476318,0.02897064,263.88,263.82,0.02630894]
[1737740476822,0.02897064,263.88,263.85,3.7889]
[1737740477023,0.02897064,263.88,263.82,0.02630894]
[1737740477219,12.75941607,263.98,263.82,0.02630894]
[1737740477427,8.97211607,263.98,263.81,2.5256]
[1737740477827,3.7878,263.94,263.81,2.5256]
[1737740478029,8.97211607,263.98,263.81,2.5256]
[1737740478220,3.7884,263.9,263.84,3.789]
[1737740478428,8.97211607,263.94,263.81,2.5256]
[1737740478623,2.52,264.0,263.81,2.5256]
[1737740478624,8.9979945,263.9,263.84,0.02670623]
[1737740478921,8.9979945,263.9,263.74,1.3084]
[1737740479125,8.97211607,263.9,263.84,0.02400289]
[1737740479432,0.02643821,263.85,263.84,3.81320289]
[1737740480932,8.97211607,263.94,263.84,0.02400289]
[1737740481131,2.52,263.97,263.84,0.02400289]
[1737740481834,8.97211607,263.98,263.84,0.02400289]
[1737740482035,0.02699125,263.93,263.86,3.7888]
[1737740482334,0.02699125,263.93,263.8,8.97211607]
[1737740482534,0.02699125,263.93,263.87,0.02550735]
[1737740483136,0.02699125,263.93,263.92,3.788]
[1737740484839,0.02699125,263.93,263.89,3.7884]
[1737740485131,0.02699125,263.93,263.87,0.02550735]
[1737740485340,0.02699125,263.93,263.88,3.7885]
[1737740485635,0.02699125,263.93,263.87,0.02550735]
[1737740486832,0.02699125,263.93,263.92,3.788]
[1737740494032,8.97211607,264.06,263.88,8.97211607]
[1737740494234,2.52,264.09,263.92,8.97211607]
[1737740494540,8.97211607,264.1,263.92,8.97211607]
[1737740494741,0.68016155,264.09,264.03,3.7864]
[1737740494939,0.68016155,264.09,263.92,8.97211607]
[1737740495240,11.49211607,264.1,264.05,3.7861]
[1737740495640,8.97211607,264.1,264.05,3.81063855]
[1737740496043,8.97211607,264.1,264.05,0.02453855]
[1737740497242,2.52,264.11,264.05,0.02453855]
[1737740497740,3.7852,264.12,264.05,0.02453855]
[1737740498137,3.7852,264.12,264.06,3.786]
[1737740498843,2.52,264.13,264.07,3.7858]
[1737740499137,1.2954,264.15,264.05,0.02453855]
[1737740499348,3.8154,264.15,264.1,3.7854]
[1737740499847,0.68003654,264.14,264.1,3.7854]
[1737740500743,0.68003654,264.14,264.11,3.7853]
[1737740501044,1.2954,264.15,264.05,0.02453855]
[1737740501343,1.2954,264.15,264.09,3.7854]
[1737740501543,1.2954,264.15,264.05,0.02453855]
[1737740502442,1.2954,264.15,264.09,3.7855]
[1737740503042,5.0802,264.15,264.09,3.7855]
[1737740503837,5.0802,264.15,264.1,3.7854]
[1737740504942,1.2954,264.15,264.1,3.7854]
[1737740506050,5.0801,264.15,264.1,3.7854]
[1737740506252,1.2954,264.15,264.08,3.7856]
[1737740506446,3.7853,264.11,264.05,0.02453855]
[1737740506749,8.97211607,264.12,264.06,3.7859]
[1737740507448,12.75741607,264.12,264.06,3.7859]
[1737740508249,3.7855,264.1,264.05,0.02453855]
[1737740509150,3.7853,264.11,264.05,3.81053855]
[1737740509349,8.97211607,264.12,264.05,0.02453855]
[1737740509550,8.97211607,264.12,263.97,3.59603855]
[1737740510146,12.75731607,264.12,263.97,3.59603855]
[1737740510745,0.02560174,264.07,264.02,0.02731355]
[1737740511454,0.02560174,264.07,264.06,3.786]
[1737740518260,0.02560174,264.07,264.02,0.02731355]
[1737740519160,3.81180174,264.07,264.02,3.81421355]
[1737740519560,3.7864,264.06,264.02,0.02731355]
[1737740519959,0.02560174,264.07,264.02,0.02731355]
[1737740520353,0.02560174,264.07,263.93,2.531]
[1737740520354,3.7868,264.04,263.98,3.7874]
[1737740520555,3.7868,264.04,263.93,1.23]
[1737740520556,0.02560174,264.07,263.93,1.23]
[1737740520755,2.48,264.04,263.93,1.23]
[1737740520959,3.7868,264.03,263.95,3.7878]
[1737740521564,0.02637038,264.02,263.96,0.02515298]
[1737740521767,3.81327038,264.02,263.96,0.02515298]
[1737740522068,0.02637038,264.02,263.96,0.02515298]
[1737740522666,0.02637038,264.02,263.98,3.7874]
[1737740523269,0.02637038,264.02,263.96,0.02515298]
[1737740523469,3.7871,264.01,263.96,0.02515298]
[1737740523664,0.02637038,264.02,263.96,0.02515298]
[1737740524761,3.81347038,264.02,263.96,0.02515298]
[1737740524964,0.02637038,264.02,263.96,0.02515298]
[1737740525671,0.02637038,264.02,263.97,3.7876]
[1737740526367,3.7872,264.0,263.96,0.02515298]
[1737740527472,3.7871,264.01,263.96,0.02515298]
[1737740527771,5.73278202,263.99,263.96,0.02515298]
[1737740528072,5.73278202,263.99,263.96,3.81295298]
[1737740530275,5.73278202,263.99,263.96,0.02515298]
[1737740530576,0.02637038,264.02,263.96,0.02515298]
[1737740532175,0.02637038,264.02,264.01,3.7871]
[1737740541676,5.7591524,264.02,263.96,0.02515298]
[1737740541870,5.73278202,263.99,263.96,0.02515298]
[1737740542577,5.73278202,263.99,263.97,3.7876]
[1737740543976,5.73278202,263.99,263.96,0.02515298]
[1737740545174,5.73278202,263.99,263.96,3.81295298]
[1737740546579,5.73278202,263.99,263.97,3.7876]
[1737740546774,5.73278202,263.99,263.96,0.02515298]
[1737740547678,5.73278202,263.97,263.96,0.02515298]
[1737740547879,5.73278202,263.97,263.96,3.81275298]
[1737740548382,5.73278202,264.0,263.99,3.7872]
[1737740548778,5.7591524,264.02,263.96,0.02515298]
[1737740550183,0.02637038,264.02,264.01,3.7871]
[1737740553685,5.73278202,264.07,263.98,5.73278202]
[1737740553883,5.73278202,264.1,264.09,3.7858]
[1737740557482,22.77,264.09,263.86,5.73278202]
[1737740557683,5.73278202,263.96,263.82,57.87216887]
[1737740557985,1.43749222,264.08,263.82,57.87216887]
[1737740557986,5.73278202,263.93,263.87,3.7889]
[1737740558682,5.75689805,263.93,263.87,3.81462817]
[1737740559384,5.73278202,263.9,263.87,0.02572817]
[1737740559784,0.02411603,263.93,263.87,0.02572817]
[1737740560480,3.81231603,263.93,263.87,0.02572817]
[1737740563291,3.7883,263.92,263.87,0.02572817]
[1737740564290,0.02411603,263.93,263.87,0.02572817]
[1737740564491,3.81221603,263.93,263.87,0.02572817]
[1737740565990,3.7883,263.92,263.87,0.02572817]
[1737740566192,0.02411603,263.93,263.87,0.02572817]
[1737740566892,0.02411603,263.93,263.87,3.81462817]
[1737740567288,8.96345804,263.9,263.87,0.02572817]
[1737740567489,8.96345804,263.9,263.77,1.2312]
[1737740567793,8.96345804,263.86,263.77,1.2312]
[1737740568393,8.96345804,263.86,263.79,3.79]
[1737740568592,8.96345804,263.86,263.77,1.2312]
[1737740568787,0.02454058,263.85,263.8,0.0263859]
[1737740568986,0.02454058,263.85,263.81,3.7897]
[1737740569386,0.02454058,263.85,263.8,0.0263859]
[1737740570189,0.02454058,263.85,263.8,3.8163859]
[1737740570993,0.02454058,263.85,263.81,3.7898]
[1737740571793,0.02454058,263.85,263.8,0.0263859]
[1737740571995,0.02454058,263.85,263.81,3.7897]
[1737740572191,2.56454058,263.85,263.81,3.7897]
[1737740572991,2.56454058,263.85,263.8,0.0263859]
[1737740573194,2.56454058,263.85,263.82,3.7897]
[1737740574097,2.56454058,263.85,263.84,3.7894]
[1737740578899,2.56454058,263.85,263.8,3.8160859]
[1737740579198,2.56454058,263.85,263.8,0.0263859]
[1737740579999,8.96345804,263.82,263.8,0.0263859]
[1737740580793,2.56454058,263.85,263.8,0.0263859]
[1737740581704,5.73905193,263.84,263.8,0.0263859]
[1737740582101,5.73905193,263.84,263.83,3.7895]
[1737740583709,4.058e-05,263.85,263.84,3.7894]
[1737740586505,5.73905193,264.02,264.0,3.7869]
[1737740587098,5.73905193,264.02,263.94,1.2304]
[1737740587300,5.73905193,263.96,263.94,1.2304]
[1737740587506,5.73905193,263.96,263.86,5.73905193]
[1737740587706,5.73905193,263.93,263.92,0.02638638]
[1737740587901,5.73905193,263.93,263.83,6.96945193]
[1737740588101,5.73905193,263.93,263.9,0.02566091]
[1737740589205,5.73905193,263.93,263.91,3.7882]
[1737740589606,0.02582394,263.95,263.9,0.02566091]
[1737740590103,0.02582394,263.95,263.94,3.7878]
[1737740590708,5.73905193,263.99,263.98,3.7873]
[1737740590907,8.25905193,264.02,263.92,5.73905193]
[1737740591114,5.73905193,264.02,263.92,5.73905193]
[1737740591308,5.73905193,264.02,264.0,3.7869]
[1737740592205,5.73905193,264.02,264.01,3.7868]
[1737740592405,5.73905193,264.02,263.98,0.02688539]
[1737740593009,5.73905193,263.99,263.98,0.02688539]
[1737740594620,5.73905193,263.99,263.98,3.81408539]
[1737740594910,5.73905193,264.02,263.98,0.02688539]
[1737740595313,5.73905193,264.02,264.01,3.7868]
[1737740597517,0.02441331,264.04,263.98,0.02688539]
[1737740597813,5.73905193,264.08,263.99,5.73905193]
[1737740598315,5.73905193,264.08,264.05,3.7862]
[1737740599211,5.73905193,264.08,264.06,3.7861]
[1737740599417,5.73905193,264.11,264.04,0.02511351]
[1737740599819,2.5,264.13,264.04,0.02511351]
[1737740601626,2.5,264.13,264.06,3.7859]
[1737740601921,2.5,264.13,264.04,0.02511351]
[1737740602923,2.5,264.13,264.09,3.7856]
[1737740603720,2.5,264.13,264.04,0.02511351]
[1737740604023,8.94998082,264.14,264.04,0.02511351]
[1737740606322,12.73488082,264.14,264.04,0.02511351]
[1737740606527,2.5,264.17,264.04,0.02511351]
[1737740606728,8.94998082,264.18,264.04,0.02511351]
[1737740606929,8.94998082,264.18,264.13,3.785]
[1737740607528,8.94998082,264.18,264.13,3.81289255]
[1737740608127,12.73428082,264.18,264.13,3.81289255]
[1737740608735,15.23428082,264.18,264.13,3.81289255]
[1737740609826,11.44998082,264.18,264.13,0.02789255]
[1737740610032,3.7846,264.16,264.13,0.02789255]
[1737740612330,3.7849,264.14,264.13,0.02789255]
[1737740612531,8.94998082,264.14,264.05,1.2445]
[1737740612833,8.94998082,264.14,264.07,3.7859]
[1737740613633,3.7851,264.13,264.07,3.7859]
[1737740613834,3.81222149,264.13,264.08,0.02696176]
[1737740614436,3.81222149,264.13,264.08,3.81266176]
[1737740614836,0.02712149,264.13,264.08,0.02696176]
[1737740615032,8.94998082,264.1,264.08,0.02696176]
[1737740615735,3.7857,264.08,263.94,2.5162]
[1737740616127,8.94998082,264.1,263.94,2.5162]
[1737740616331,0.68016383,264.09,263.94,2.5162]
[1737740616932,0.02486031,264.04,263.99,0.02761239]
[1737740617134,0.02486031,264.04,263.99,3.81451239]
[1737740619436,0.02486031,264.04,264.03,3.7864]
[1737740623641,5.73003629,264.08,264.07,3.7859]
[1737740624741,5.73003629,264.11,264.1,3.7854]
[1737740628444,0.02856295,264.13,264.12,3.7852]
[1737740631345,6.295e-05,264.13,264.12,3.7852]
[1737740643855,6.295e-05,264.13,264.08,0.02489774]
[1737740644660,6.295e-05,264.13,264.12,3.7852]
[1737740645253,6.295e-05,264.13,264.08,0.02489774]
[1737740646660,6.295e-05,264.13,264.11,3.7853]
[1737740647659,6.295e-05,264.13,264.12,3.7852]
[1737740650663,6.295e-05,264.13,264.1,3.7854]
[1737740650961,6.295e-05,264.13,264.08,0.02489774]
[1737740652060,6.295e-05,264.13,264.12,3.7852]
[1737740659670,6.295e-05,264.13,264.12,3.53294]
[1737740663569,6.295e-05,264.13,264.08,0.02489774]
[1737740663868,5.73003629,264.2,264.1,5.73003629]
[1737740664466,5.73003629,264.2,264.17,3.7844]
[1737740665669,5.73003629,264.28,264.22,3.7837]
[1737740665971,5.73003629,264.28,264.17,5.73003629]
[1737740666169,5.73003629,264.28,264.22,0.02717596]
[1737740666566,5.73003629,264.32,264.22,0.02717596]
[1737740666971,5.73003629,264.32,264.25,3.7833]
[1737740667174,5.73003629,264.32,264.22,0.02717596]
[1737740667576,5.73003629,264.29,264.26,3.7831]
[1737740670982,5.73003629,264.29,264.27,3.783]
[1737740673579,5.73003629,264.31,264.25,0.02635806]
[1737740675184,5.73003629,264.31,264.28,3.7828]
[1737740677284,5.73003629,264.31,264.25,0.02635806]
[1737740677485,5.73003629,264.29,264.25,0.02635806]
[1737740677987,5.73003629,264.29,264.25,3.80965806]
[1737740678993,5.73003629,264.29,264.28,3.7829]
[1737740679194,5.73003629,264.31,264.25,0.02635806]
[1737740679792,5.73003629,264.31,264.29,3.7826]
[1737740680487,5.73003629,264.37,264.29,5.73003629]
[1737740680690,5.73003629,264.37,264.27,5.73003629]
[1737740680887,5.73003629,264.37,264.3,0.0241038]
[1737740681086,5.73003629,264.37,264.32,3.7822]
[1737740681591,5.73003629,264.34,264.3,0.0241038]
[1737740681899,5.73003629,264.31,264.3,0.0241038]
[1737740682194,5.73003629,264.31,264.22,5.73003629]
[1737740682496,5.73003629,264.31,264.28,0.02486312]
[1737740683092,5.73003629,264.31,264.28,3.80766312]
[1737740687199,5.73003629,264.31,264.28,0.02486312]
[1737740687395,5.73003629,264.31,264.29,3.7827]
[1737740690603,5.73003629,264.31,264.3,3.7826]
[1737740692508,3.7827,264.29,264.28,0.02486312]
[1737740692703,9.51273629,264.29,264.28,0.02486312]
[1737740692902,5.73003629,264.29,264.28,0.02486312]
[1737740695406,9.51273629,264.29,264.28,0.02486312]
[1737740695607,5.73003629,264.29,264.19,5.73003629]
[1737740695905,5.73003629,264.26,264.19,5.73003629]
[1737740696607,5.73003629,264.26,264.21,3.7838]
[1737740696905,0.02435206,264.25,264.21,3.7838]
[1737740697105,5.73003629,264.24,264.21,3.7838]
[1737740697506,5.73003629,264.24,264.2,0.02648852]
[1737740698708,5.73003629,264.24,264.21,3.7838]
[1737740699097,5.73003629,264.24,264.2,0.02648852]
[1737740699808,5.73003629,264.24,264.22,3.7837]
[1737740702904,5.73003629,264.24,264.2,0.02648852]
[1737740703107,0.02435206,264.25,264.2,0.02648852]
[1737740704308,0.02435206,264.25,264.24,3.7834]
[1737740706803,5.206e-05,264.25,264.24,3.7834]
[1737740707003,5.73003629,264.3,264.29,3.7827]
[1737740707204,5.73003629,264.33,264.23,1.2117]
[1737740707408,5.73003629,264.33,264.25,5.73003629]
[1737740707710,5.73003629,264.4,264.31,5.73003629]
[1737740707908,5.73003629,264.42,264.35,5.73003629]
[1737740708109,7.22342349,264.44,264.39,5.73003629]
[1737740708311,7.22342349,264.49,264.47,3.7801]
[1737740709204,68.66592491,264.5,264.45,0.02718141]
[1737740709509,5.73003629,264.48,264.45,0.02718141]
[1737740711407,5.73003629,264.5,264.45,0.02718141]
[1737740711603,5.73003629,264.52,264.45,0.02718141]
[1737740711808,5.73003629,264.52,264.47,3.7801]
[1737740712112,5.73003629,264.52,264.45,5.7572177]
[1737740713115,5.73003629,264.52,264.47,3.78]
[1737740713409,5.73003629,264.52,264.45,5.7572177]
[1737740713614,5.73003629,264.52,264.45,0.02718141]